fUSD/lending_fUSD_20250530
["ID","MTS","AMOUNT","RATE_DAILY","PERIOD"]
[363134064,1748595424917,-1000.0,0.00046,120]
[363134065,1748595424944,-249.57143205,0.00046,120]
[363134066,1748595424971,-19863.08814023,0.00046,120]
[363134067,1748595424997,-1000.0,0.00046,120]
[363134068,1748595425024,-836835.27849435,0.00046,120]
[363134069,1748595439205,-1259.0,0.00041209,60]
[363134070,1748595439236,-565.08989117,0.00041209,120]
[363134071,1748595439265,-379.48,0.00041209,30]
[363134072,1748595439294,-1000.0,0.00041209,30]
[363134073,1748595439333,-1000.0,0.00041209,30]
[363134074,1748595439391,-1000.0,0.00041209,30]
[363134075,1748595439421,-1000.0,0.00041209,30]
[363134076,1748595439451,-1000.0,0.00041209,30]
[363134077,1748595439484,-1000.0,0.00041209,30]
[363134078,1748595439512,-1000.0,0.00041209,30]
[363134079,1748595439540,-296.68241126,0.00041209,30]
[363134080,1748595439567,-817.49481829,0.00041209,30]
[363134081,1748595439596,-1000.0,0.00041209,30]
[363134082,1748595439624,-1000.0,0.00041209,30]
[363134083,1748595439657,-799.68280251,0.00041209,30]
[363134084,1748595439684,-1186.0,0.00041209,31]
[363134085,1748595439712,-1186.0,0.00041209,31]
[363134086,1748595439740,-1189.0,0.00041209,31]
[363134087,1748595439768,-1186.0,0.00041209,31]
[363134088,1748595439797,-1000.0,0.00041209,60]
[363134089,1748595439824,-1000.0,0.00041209,120]
[363134090,1748595439852,-200.0,0.00041209,30]
[363134091,1748595439880,-200.0,0.00041209,30]
[363134092,1748595439907,-200.0,0.00041209,30]
[363134093,1748595439936,-200.0,0.00041209,30]
[363134094,1748595439965,-200.0,0.00041209,30]
[363134095,1748595439992,-200.0,0.00041209,30]
[363134096,1748595440026,-200.0,0.00041209,30]
[363134097,1748595440054,-200.0,0.00041209,30]
[363134098,1748595440082,-200.0,0.00041209,30]
[363134099,1748595440110,-200.0,0.00041209,30]
[363134100,1748595440137,-200.0,0.00041209,30]
[363134101,1748595440164,-200.0,0.00041209,30]
[363134102,1748595440193,-200.0,0.00041209,30]
[363134103,1748595440222,-200.0,0.00041209,30]
[363134104,1748595440249,-200.0,0.00041209,30]
[363134105,1748595440277,-200.0,0.00041209,30]
[363134106,1748595440305,-160.0,0.00041209,30]
[363134107,1748595440334,-160.0,0.00041209,30]
[363134108,1748595440364,-160.0,0.00041209,30]
[363134109,1748595440721,-160.0,0.00041209,30]
[363134110,1748595440751,-160.0,0.00041209,30]
[363134111,1748595440784,-160.0,0.00041209,30]
[363134112,1748595440812,-1000.0,0.00041209,30]
[363134113,1748595440840,-160.0,0.00041209,30]
[363134114,1748595440867,-160.0,0.00041209,30]
[363134115,1748595440895,-160.0,0.00041209,30]
[363134116,1748595440922,-160.0,0.00041209,30]
[363134117,1748595440951,-160.0,0.00041209,30]
[363134118,1748595440978,-160.0,0.00041209,30]
[363134119,1748595441005,-160.0,0.00041209,30]
[363134120,1748595441032,-160.0,0.00041209,30]
[363134121,1748595441060,-160.0,0.00041209,30]
[363134122,1748595441087,-160.0,0.00041209,30]
[363134123,1748595441114,-160.0,0.00041209,30]
[363134124,1748595441141,-1000.0,0.00041209,60]
[363134125,1748595441168,-209.2,0.00041209,30]
[363134126,1748595441195,-209.2,0.00041209,30]
[363134127,1748595441223,-1000.0,0.00041209,60]
[363134128,1748595441249,-209.2,0.00041209,30]
[363134129,1748595441277,-209.2,0.00041209,30]
[363134130,1748595441304,-209.2,0.00041209,30]
[363134131,1748595441331,-1000.0,0.00041209,30]
[363134132,1748595441359,-1000.0,0.00041209,60]
[363134133,1748595441386,-1000.0,0.00041209,30]
[363134134,1748595441415,-1000.0,0.00041209,30]
[363134135,1748595441444,-1000.0,0.00041209,60]
[363134136,1748595441473,-1000.0,0.00041209,120]
[363134137,1748595441500,-3289.17993387,0.00041209,60]
[363134138,1748595441527,-1000.0,0.00041209,30]
[363134139,1748595441554,-1000.0,0.00041209,60]
[363134140,1748595441581,-1000.0,0.00041209,60]
[363134141,1748595441609,-1000.0,0.00041209,60]
[363134142,1748595441638,-1000.0,0.00041209,30]
[363134143,1748595441667,-1000.0,0.00041209,30]
[363134144,1748595441694,-1000.0,0.00041209,30]
[363134145,1748595441723,-1000.0,0.00041209,30]
[363134146,1748595441750,-1000.0,0.00041209,30]
[363134147,1748595441777,-1000.0,0.00041209,30]
[363134148,1748595441804,-788.28667747,0.00041209,90]
[363134149,1748595441830,-1000.0,0.00041209,60]
[363134150,1748595441856,-518.86113659,0.00041209,30]
[363134151,1748595441882,-999.999997,0.00041209,120]
[363134152,1748595441908,-382.57240544,0.00041209,30]
[363134153,1748595441935,-387.78404161,0.00041209,30]
[363134154,1748595441961,-250.48767397,0.00041209,120]
[363134155,1748595441989,-1076.59845066,0.00041209,30]
[363134156,1748595442017,-1438.86022987,0.00041209,91]
[363134157,1748595442045,-889.54766884,0.00041209,30]
[363134158,1748595442072,-1000.0,0.00041209,30]
[363134159,1748595442102,-1072.66929028,0.00041209,30]
[363134160,1748595442129,-197.2748154,0.00041209,120]
[363134161,1748595442156,-890.92813007,0.00041209,120]
[363134162,1748595442183,-1000.0,0.00041209,30]
[363134163,1748595442210,-1516.52278717,0.00041209,120]
[363134164,1748595442237,-750.64794889,0.00041209,30]
[363134165,1748595442265,-296.21530935,0.00041209,30]
[363134166,1748595442293,-1341.44798615,0.00041209,30]
[363134167,1748595442321,-1000.0,0.00041209,30]
[363134168,1748595442348,-732.41446396,0.00041209,120]
[363134169,1748595442375,-530.480738,0.00041209,120]
[363134170,1748595442404,-399.08546615,0.00041209,120]
[363134171,1748595442432,-304.81978606,0.00041209,30]
[363134172,1748595442460,-867.79331021,0.00041209,120]
[363134173,1748595442488,-1000.0,0.00041209,30]
[363134174,1748595442515,-871.31587033,0.00041209,30]
[363134175,1748595442543,-879.64936073,0.00041209,30]
[363134176,1748595442573,-1000.0,0.00041209,30]
[363134177,1748595442602,-188.23111418,0.00041209,30]
[363134178,1748595442632,-2010.58394035,0.00041209,90]
[363134179,1748595442670,-210.31544917,0.00041209,120]
[363134180,1748595442698,-178.85600988,0.00041209,30]
[363134181,1748595442726,-1505.24651077,0.00041209,120]
[363134182,1748595442753,-947.50607757,0.00041209,30]
[363134183,1748595442780,-228.48329708,0.00041209,120]
[363134184,1748595442808,-272.73872764,0.00041209,60]
[363134185,1748595442836,-180.23254292,0.00041209,120]
[363134186,1748595442864,-2473.00585221,0.00041209,120]
[363134187,1748595442893,-212.0715065,0.00041209,30]
[363134188,1748595442920,-978.85838436,0.00041209,30]
[363134189,1748595442949,-868.1873125,0.00041209,120]
[363134190,1748595442977,-472.21808361,0.00041209,120]
[363134191,1748595443005,-182.32285747,0.00041209,120]
[363134192,1748595443039,-861.10080447,0.00041209,120]
[363134193,1748595443087,-1090.6151025,0.00041209,120]
[363134194,1748595443115,-1525.16257395,0.00041209,30]
[363134195,1748595443142,-191.86682199,0.00041209,120]
[363134196,1748595443170,-1030.52058646,0.00041209,30]
[363134197,1748595443197,-734.76676684,0.00041209,120]
[363134198,1748595443225,-357.76939537,0.00041209,30]
[363134199,1748595443251,-249.04003541,0.00041209,60]
[363134200,1748595443280,-472.81340325,0.00041209,120]
[363134201,1748595443309,-155.47244511,0.00041209,120]
[363134202,1748595443336,-227.91134789,0.00041209,120]
[363134203,1748595443571,-1090.66032763,0.00041209,30]
[363134204,1748595443599,-1993.85165908,0.00041209,120]
[363134205,1748595443627,-443.41317165,0.00041209,31]
[363134206,1748595443658,-1030.35861223,0.00041209,30]
[363134207,1748595443684,-454.65389117,0.00041209,120]
[363134208,1748595443712,-1868.32708685,0.00041209,120]
[363134209,1748595443741,-234.46082119,0.00041209,120]
[363134210,1748595443770,-639.78922264,0.00041209,120]
[363134211,1748595443800,-571.03704423,0.00041209,120]
[363134212,1748595443828,-932.00337994,0.00041209,30]
[363134213,1748595443855,-997.0,0.00041209,30]
[363134214,1748595443882,-1001.53987797,0.00041209,120]
[363134215,1748595443908,-385.82388936,0.00041209,120]
[363134216,1748595443935,-900.38485931,0.00041209,30]
[363134217,1748595443960,-177.97994254,0.00041209,120]
[363134218,1748595443987,-568.03987789,0.00041209,120]
[363134219,1748595444014,-184.57269545,0.00041209,60]
[363134220,1748595444041,-1306.51200828,0.00041209,38]
[363134221,1748595444067,-207.87410953,0.00041209,30]
[363134222,1748595444094,-907.2015627,0.00041209,120]
[363134223,1748595444120,-1308.08688204,0.00041209,120]
[363134224,1748595444147,-551.48028336,0.00041209,120]
[363134225,1748595444174,-1248.81536196,0.00041209,120]
[363134226,1748595444201,-888.37425898,0.00041209,120]
[363134227,1748595444229,-1166.10657694,0.00041209,120]
[363134228,1748595444257,-272.27348676,0.00041209,30]
[363134229,1748595444284,-1159.47186353,0.00041209,30]
[363134230,1748595444310,-990.23015337,0.00041209,120]
[363134231,1748595444340,-1374.72220819,0.00041209,120]
[363134232,1748595444367,-562.24793993,0.00041209,30]
[363134233,1748595444393,-207.69483942,0.00041209,31]
[363134234,1748595444422,-3111.37811871,0.00041209,120]
[363134235,1748595444449,-1118.77392959,0.00041209,30]
[363134236,1748595444478,-1182.38875191,0.00041209,120]
[363134237,1748595444505,-586.20119085,0.00041209,30]
[363134238,1748595444532,-801.10464895,0.00041209,120]
[363134239,1748595444560,-1511.84299226,0.00041209,120]
[363134240,1748595444588,-398.48428526,0.00041209,120]
[363134241,1748595444615,-1281.27750749,0.00041209,30]
[363134242,1748595444642,-2422.74654479,0.00041209,120]
[363134243,1748595444669,-304.52252927,0.00041209,120]
[363134244,1748595444697,-279.2687729,0.00041209,120]
[363134245,1748595444727,-778.98692947,0.00041209,45]
[363134246,1748595444754,-3000.0,0.00041209,120]
[363134247,1748595444779,-3000.0,0.00041209,120]
[363134248,1748595444805,-300.0,0.00041209,30]
[363134249,1748595444831,-1000.0,0.00041209,60]
[363134250,1748595444858,-500.0,0.00041209,120]
[363134251,1748595444888,-50000.0,0.00041209,30]
[363134252,1748595444919,-50000.0,0.00041209,31]
[363134253,1748595444952,-50000.0,0.00041209,32]
[363134254,1748595444983,-50000.0,0.00041209,33]
[363134255,1748595445016,-50000.0,0.00041209,34]
[363134256,1748595445045,-50000.0,0.00041209,35]
[363134257,1748595445074,-9744.70830961,0.00041209,120]
[363134258,1748595445101,-160.0,0.00041209,30]
[363134259,1748595445128,-31652.38422826,0.00041209,30]
[363134260,1748595445155,-13250.22192749,0.00041209,30]
[363134261,1748595445182,-27535.31576397,0.00041209,30]
[363134262,1748595445210,-303460.66109232,0.00041209,30]
[363134263,1748595445237,-38638.63084015,0.00041209,30]
[363134264,1748595445263,-34654.26226049,0.00041209,30]
[363134265,1748595445290,-273.0,0.00041209,120]
[363134266,1748595445317,-13578.21946994,0.00041209,30]
[363134267,1748595445343,-10874.11230038,0.00041209,30]
[363134268,1748595445371,-194336.78136335,0.00041209,30]
[363134269,1748595445397,-27675.31121913,0.00041209,30]
[363134270,1748595445425,-532457.22582855,0.00041209,120]
[363134271,1748595445452,-33321.17101527,0.00041209,30]
[363134272,1748595445480,-29815.93933938,0.00041209,30]
[363134273,1748595445508,-15427.82982311,0.00041209,30]
[363134274,1748595445535,-50000.0,0.00041209,30]
[363134275,1748595445564,-36511.28284962,0.00041209,30]
[363134276,1748595445592,-13324.76908329,0.00041209,30]
[363134277,1748595445622,-9980.0,0.00041209,120]
[363134278,1748595445656,-2000.0,0.00041209,31]
[363134279,1748595445686,-3274.43053691,0.00041209,30]
[363134280,1748595445715,-160.0,0.00041209,30]
[363134281,1748595445740,-1078.85225351,0.00041209,30]
[363134282,1748595445767,-209.34863487,0.00041209,32]
[363134283,1748595445793,-1097.93911556,0.00041209,120]
[363134284,1748595445820,-166.0,0.00041209,120]
[363134285,1748595445846,-894.0,0.00041209,120]
[363134286,1748595445874,-212.8,0.00041209,30]
[363134287,1748595445900,-169.49041528,0.00041209,60]
[363134288,1748595445929,-320.0,0.00041209,30]
[363134289,1748595445956,-1334.0,0.00041209,120]
[363134290,1748595445982,-31315.30709848,0.00041209,30]
[363134291,1748595446009,-30459.00739479,0.00041209,30]
[363134292,1748595446037,-4351.73173617,0.00041209,30]
[363134293,1748595446064,-267.70706739,0.00041209,30]
[363134294,1748595446091,-1254.58939812,0.00041209,30]
[363134295,1748595446121,-160.0,0.00041209,30]
[363134296,1748595446150,-160.0,0.00041209,30]
[363134297,1748595446372,-160.0,0.00041209,30]
[363134298,1748595446401,-160.0,0.00041209,30]
[363134299,1748595446429,-389.5506,0.00041209,120]
[363134300,1748595446457,-1196.2492295,0.00041209,120]
[363134301,1748595446484,-200000.0,0.00041209,120]
[363134302,1748595446512,-499.0,0.00041209,120]
[363134303,1748595446540,-3300.0,0.00041209,120]
[363134304,1748595446569,-950.13770415,0.00041209,120]
[363134305,1748595446596,-50720.56571716,0.00041209,30]
[363134306,1748595446622,-11603.34551152,0.00041209,30]
[363134307,1748595446653,-4648.0961295,0.00041209,30]
[363134308,1748595446681,-205.24087639,0.00041209,120]
[363134309,1748595446710,-1783099.04942007,0.00041209,60]
[363134310,1748595453325,-6000000.0,0.00041209,60]
[363134311,1748595457061,-767661.52057993,0.00041209,60]
[363134312,1748595457091,-1153.47965477,0.00041209,120]
[363134313,1748595457119,-150.0,0.00041209,120]
[363134314,1748595457150,-3540.43,0.00041209,120]
[363134315,1748595457181,-3540.43,0.00041209,120]
[363134316,1748595457212,-3540.43,0.00041209,120]
[363134317,1748595457244,-3540.43,0.00041209,120]
[363134318,1748595457275,-3540.43,0.00041209,120]
[363134319,1748595457306,-3540.43,0.00041209,120]
[363134320,1748595457337,-3540.43,0.00041209,120]
[363134321,1748595457370,-3540.43,0.00041209,120]
[363134322,1748595457401,-3540.43,0.00041209,120]
[363134323,1748595457432,-3540.43,0.00041209,120]
[363134324,1748595457465,-3540.43,0.00041209,120]
[363134325,1748595457496,-3540.43,0.00041209,120]
[363134326,1748595457527,-3540.43,0.00041209,120]
[363134327,1748595457558,-3540.43,0.00041209,120]
[363134328,1748595457588,-3540.43,0.00041209,120]
[363134329,1748595457619,-3540.43,0.00041209,120]
[363134330,1748595457651,-3540.43,0.00041209,120]
[363134331,1748595457683,-3540.43,0.00041209,120]
[363134332,1748595457712,-3540.43,0.00041209,120]
[363134333,1748595457746,-3540.43,0.00041209,120]
[363134334,1748595457777,-3540.43,0.00041209,120]
[363134335,1748595457809,-3540.43,0.00041209,120]
[363134336,1748595457840,-3540.43,0.00041209,120]
[363134337,1748595457871,-3540.53305182,0.00041209,120]
[363134338,1748595457899,-421.50194501,0.00041209,120]
[363134339,1748595457929,-669.57309388,0.00041209,120]
[363134340,1748595457958,-175.16701524,0.00041209,120]
[363134341,1748595457989,-3690.34441143,0.00041209,120]
[363134342,1748595458020,-2931.74923443,0.00041209,120]
[363134343,1748595458051,-534.55,0.00041209,120]
[363134344,1748595458083,-534.55,0.00041209,120]
[363134345,1748595458114,-534.55,0.00041209,120]
[363134346,1748595458144,-534.55,0.00041209,120]
[363134347,1748595458173,-534.55,0.00041209,120]
[363134348,1748595458202,-534.55,0.00041209,120]
[363134349,1748595458232,-534.55,0.00041209,120]
[363134350,1748595458261,-534.55,0.00041209,120]
[363134351,1748595458291,-534.55,0.00041209,120]
[363134352,1748595458321,-534.55,0.00041209,120]
[363134353,1748595458352,-534.55,0.00041209,120]
[363134354,1748595458382,-534.55,0.00041209,120]
[363134355,1748595458413,-534.55,0.00041209,120]
[363134356,1748595458443,-534.55,0.00041209,120]
[363134357,1748595458473,-534.55,0.00041209,120]
[363134358,1748595458503,-534.55,0.00041209,120]
[363134359,1748595458533,-534.55,0.00041209,120]
[363134360,1748595458562,-534.55,0.00041209,120]
[363134361,1748595458592,-534.55,0.00041209,120]
[363134362,1748595458622,-534.55,0.00041209,120]
[363134363,1748595458652,-534.55,0.00041209,120]
[363134364,1748595458682,-534.55,0.00041209,120]
[363134365,1748595458711,-534.55,0.00041209,120]
[363134366,1748595458743,-534.65000001,0.00041209,120]
[363134367,1748595458770,-500.0,0.00041209,120]
[363134368,1748595458797,-500.0,0.00041209,120]
[363134369,1748595458825,-500.0,0.00041209,120]
[363134370,1748595458853,-500.0,0.00041209,120]
[363134371,1748595458881,-500.0,0.00041209,120]
[363134372,1748595458910,-500.0,0.00041209,120]
[363134373,1748595458941,-500.0,0.00041209,120]
[363134374,1748595458971,-500.0,0.00041209,120]
[363134375,1748595459001,-500.0,0.00041209,120]
[363134376,1748595459032,-500.0,0.00041209,120]
[363134377,1748595459061,-500.0,0.00041209,120]
[363134378,1748595459089,-328.16,0.00041209,120]
[363134379,1748595459118,-10000.0,0.00041209,120]
[363134380,1748595459145,-10096.11556937,0.00041209,120]
[363134381,1748595459174,-31830.0,0.00041209,30]
[363134382,1748595459201,-259.0,0.00041209,31]
[363134383,1748595459228,-258.0,0.00041209,31]
[363134384,1748595459255,-1904.0,0.00041209,90]
[363134385,1748595459281,-1585.26984189,0.00041209,120]
[363134386,1748595459310,-500.0,0.00041209,120]
[363134387,1748595459339,-500.0,0.00041209,120]
[363134388,1748595459370,-500.0,0.00041209,120]
[363134389,1748595459399,-500.0,0.00041209,120]
[363134390,1748595459426,-500.0,0.00041209,120]
[363134391,1748595459457,-500.0,0.00041209,120]
[363134392,1748595459487,-500.0,0.00041209,120]
[363134393,1748595459517,-387.2,0.00041209,120]
[363134394,1748595459545,-1077.0,0.00041209,30]
[363134395,1748595459785,-1077.0,0.00041209,30]
[363134396,1748595459815,-1077.0,0.00041209,30]
[363134397,1748595459842,-1077.0,0.00041209,30]
[363134398,1748595459869,-1077.0,0.00041209,30]
[363134399,1748595459898,-1077.0,0.00041209,30]
[363134400,1748595459927,-420.0,0.00041209,120]
[363134401,1748595459955,-1588.0,0.00041209,30]
[363134402,1748595475114,-1000.0,0.00032876,120]
[363134403,1748595475143,-1000.0,0.00032904,120]
[363134404,1748595475172,-1000.0,0.00032931,120]
[363134405,1748595475200,-1000.0,0.00032958,120]
[363134406,1748595475230,-1000.0,0.00032986,120]
[363134407,1748595475258,-1000.0,0.00033013,120]
[363134408,1748595475284,-1000.0,0.00033041,120]
[363134409,1748595475310,-1000.0,0.00033068,120]
[363134410,1748595475335,-1000.0,0.00033095,120]
[363134411,1748595475361,-224.45459933,0.00033123,120]
[363134412,1748595475408,-4646.0,0.000407,117]
[363134413,1748595475433,-181.0,0.00041,90]
[363134414,1748595475470,-153.0,0.00041662,30]
[363134415,1748595475501,-153.0,0.00041662,30]
[363134416,1748595475534,-153.0,0.00041665,30]
[363134417,1748595475562,-153.0,0.00041665,30]
[363134418,1748595475589,-153.0,0.00041665,30]
[363134419,1748595475617,-153.0,0.00041696,30]
[363134420,1748595475951,-153.0,0.00041696,30]
[363134421,1748595475978,-153.0,0.00041696,30]
[363134422,1748595476007,-241.16,0.0004198,120]
[363134423,1748595476033,-253.5,0.0004199,120]
[363134424,1748595476057,-150.5,0.0004199,120]
[363134425,1748595476085,-150.0,0.00045,120]
[363134426,1748595476116,-163164.72150565,0.00046,120]
[363134427,1748595476143,-500384.0,0.00046,120]
[363134428,1748595476170,-2000.0,0.00046,120]
[363134429,1748595476196,-292.59257,0.00046,120]
[363134430,1748595476222,-165.43209,0.00046,120]
[363134431,1748595476248,-32538.3327084,0.00046,45]
[363134432,1748595476275,-60347.21025666,0.00046,30]
[363134433,1748595476302,-1300.0,0.00046,120]
[363134434,1748595476330,-600.0,0.00046,120]
[363134435,1748595476357,-3000.0,0.00046,120]
[363134436,1748595476383,-3000.0,0.00046,120]
[363134437,1748595476408,-3000.0,0.00046,120]
[363134438,1748595476434,-3000.0,0.00046,120]
[363134439,1748595476460,-2796.89627778,0.00046,120]
[363134440,1748595476486,-2000.0,0.00046,120]
[363134441,1748595476511,-1200.0,0.00046,60]
[363134442,1748595476536,-3000.0,0.00046,120]
[363134443,1748595476561,-10000.0,0.00046,48]
[363134444,1748595476588,-3690.34441143,0.00046,120]
[363134445,1748595476613,-2931.74923443,0.00046,120]
[363134446,1748595476640,-324.0,0.00046,120]
[363134447,1748595476668,-150.0,0.00046003,30]
[363134448,1748595476694,-150.0,0.00046006,30]
[363134449,1748595476722,-315.9652326,0.0004601,30]
[363134450,1748595476750,-263.02499752,0.0004601,30]
[363134451,1748595476784,-150.0,0.00046027,30]
[363134452,1748595476810,-806.79,0.00046027,30]
[363134453,1748595476836,-163.04,0.00046027,30]
[363134454,1748595476863,-453.83,0.00046027,30]
[363134455,1748595476888,-150.0,0.00046043,30]
[363134456,1748595476914,-315.9652326,0.00046058,30]
[363134457,1748595476941,-263.02499752,0.00046058,30]
[363134458,1748595476968,-150.0,0.00046058,30]
[363134459,1748595476995,-150.0,0.00046076,30]
[363134460,1748595477020,-150.0,0.0004608,30]
[363134461,1748595477047,-150.0,0.00046085,30]
[363134462,1748595477072,-417.63,0.000461,120]
[363134463,1748595477097,-315.9652326,0.00046105,30]
[363134464,1748595477124,-263.02499752,0.00046105,30]
[363134465,1748595477150,-150.0,0.00046109,30]
[363134466,1748595477181,-150.0,0.00046109,30]
[363134467,1748595477221,-150.0,0.00046109,30]
[363134468,1748595477266,-150.0,0.0004611,120]
[363134469,1748595477294,-315.9652326,0.00046152,30]
[363134470,1748595477321,-263.02499752,0.00046152,30]
[363134471,1748595477347,-150.0,0.00046161,30]
[363134472,1748595477372,-150.0,0.00046166,30]
[363134473,1748595477399,-150.0,0.00046176,30]
[363134474,1748595477424,-150.0,0.00046179,30]
[363134475,1748595477452,-2000057.06,0.0004618,120]
[363134476,1748595477478,-150.0,0.00046187,30]
[363134477,1748595477505,-315.9652326,0.00046199,30]
[363134478,1748595477532,-263.02499752,0.00046199,30]
[363134479,1748595477557,-150.0,0.00046213,30]
[363134480,1748595477583,-150.0,0.00046242,30]
[363134481,1748595477612,-315.9652326,0.00046246,30]
[363134482,1748595477642,-263.02499752,0.00046246,30]
[363134483,1748595477672,-150.0,0.00046248,30]
[363134484,1748595477698,-2000.0,0.0004625,48]
[363134485,1748595477726,-11600.0,0.0004625,90]
[363134486,1748595477753,-150.0,0.00046265,30]
[363134487,1748595477779,-150.0,0.00046278,30]
[363134488,1748595477818,-315.9652326,0.00046293,30]
[363134489,1748595477847,-263.02499752,0.00046293,30]
[363134490,1748595477873,-150.0,0.00046301,30]
[363134491,1748595477900,-150.0,0.00046309,30]
[363134492,1748595477927,-150.0,0.00046316,30]
[363134493,1748595477954,-150.0,0.0004633,30]
[363134494,1748595477983,-315.9652326,0.0004634,30]
[363134495,1748595478010,-263.02499752,0.0004634,30]
[363134496,1748595478037,-150.0,0.00046368,30]
[363134497,1748595478064,-150.0,0.00046377,30]
[363134498,1748595478090,-1000.0,0.00046384,60]
[363134499,1748595478117,-315.9652326,0.00046387,30]
[363134500,1748595478146,-263.02499752,0.00046387,30]
[363134501,1748595478181,-4375.98075071,0.000464,120]
[363134502,1748595478226,-296.29635,0.000464,120]
[363134503,1748595478253,-3899.96,0.000464,120]
[363134504,1748595478280,-2000.0,0.000464,120]
[363134505,1748595478306,-2000.0,0.000464,120]
[363134506,1748595478336,-65277.69655183,0.000464,120]
[363134507,1748595478363,-150.0,0.00046409,30]
[363134508,1748595478393,-150.0,0.00046412,30]
[363134509,1748595478422,-150.0,0.0004642,30]
[363134510,1748595478452,-315.9652326,0.00046434,30]
[363134511,1748595478483,-263.02499752,0.00046434,30]
[363134512,1748595478514,-150.0,0.00046442,30]
[363134513,1748595478544,-150.0,0.00046472,30]
[363134514,1748595478859,-150.0,0.00046476,30]
[363134515,1748595478889,-315.9652326,0.00046481,30]
[363134516,1748595478919,-263.02499752,0.00046481,30]
[363134517,1748595478949,-150.0,0.00046493,30]
[363134518,1748595478976,-50002.0,0.000465,120]
[363134519,1748595479004,-1894.850602,0.000465,110]
[363134520,1748595479032,-30573.23987538,0.000465,30]
[363134521,1748595479065,-160.0,0.000465,61]
[363134522,1748595479093,-3000.0,0.000465,120]
[363134523,1748595479122,-2651.17872344,0.000465,30]
[363134524,1748595479150,-1279.99408696,0.000465,30]
[363134525,1748595479178,-260.22037285,0.000465,33]
[363134526,1748595479206,-3000.0,0.000465,120]
[363134527,1748595479233,-20007.68484725,0.000465,30]
[363134528,1748595479263,-150.0,0.00046508,120]
[363134529,1748595479292,-150.0,0.00046523,30]
[363134530,1748595479321,-315.9652326,0.00046528,30]
[363134531,1748595479351,-263.02499752,0.00046528,30]
[363134532,1748595479381,-311.63030281,0.00046549,46]
[363134533,1748595479410,-19090.59185171,0.00046565,120]
[363134534,1748595479439,-300.0,0.00046569,120]
[363134535,1748595479471,-300.0,0.00046574,30]
[363134536,1748595479499,-300.0,0.00046574,32]
[363134537,1748595479527,-200.0,0.00046574,30]
[363134538,1748595479555,-300.0,0.00046574,60]
[363134539,1748595479582,-300.0,0.00046574,120]
[363134540,1748595479609,-156.0,0.00046574,30]
[363134541,1748595479654,-151.0,0.00046574,30]
[363134542,1748595479686,-300.0,0.00046574,30]
[363134543,1748595479717,-300.0,0.00046574,32]
[363134544,1748595479751,-300.0,0.00046574,60]
[363134545,1748595479781,-300.0,0.00046574,120]
[363134546,1748595479812,-500.0,0.00046575,30]
[363134547,1748595479843,-500.0,0.00046575,30]
[363134548,1748595479873,-500.0,0.00046575,30]
[363134549,1748595479902,-500.0,0.00046575,30]
[363134550,1748595479932,-500.0,0.00046575,30]
[363134551,1748595479962,-537.56797147,0.00046575,30]
[363134552,1748595479994,-315.9652326,0.00046575,30]
[363134553,1748595480027,-263.02499752,0.00046575,30]
[363134554,1748595480059,-150.58435204,0.00046575,30]
[363134555,1748595480089,-229.53153188,0.00046575,30]
[363134556,1748595480120,-180.8970892,0.00046575,30]
[363134557,1748595480151,-189.19433765,0.00046575,30]
[363134558,1748595480182,-159.70746532,0.00046575,30]
[363134559,1748595480219,-152.34040952,0.00046575,30]
[363134560,1748595480252,-156.15923133,0.00046575,30]
[363134561,1748595480285,-152.23806512,0.00046575,30]
[363134562,1748595480315,-153.13162216,0.00046575,30]
[363134563,1748595480346,-195.19980537,0.00046575,30]